bitfinex-derivatives/quotes_BTCF0:USTF0_20251120
["timestamp","ask_amount","ask_price","bid_price","bid_amount"]
[1763660165045,0.0115557,86634.0,86629.0,0.12]
[1763660165344,0.0115571,86623.0,86622.0,0.00017307]
[1763660165537,0.0115571,86623.0,86572.0,0.72756]
[1763660165538,0.0115581,86616.0,86604.0,0.12]
[1763660165735,0.00219803,86605.0,86548.0,0.16571]
[1763660165939,0.0115599,86602.0,86578.0,0.12]
[1763660166138,0.07722654,86623.0,86578.0,0.12]
[1763660166139,0.00219803,86586.0,86578.0,0.12]
[1763660166549,0.00231523,86586.0,86578.0,0.12]
[1763660167041,0.03335849,86586.0,86578.0,0.12]
[1763660167560,0.0115648,86565.0,86548.0,0.72756]
[1763660167737,0.0001732,86594.0,86548.0,0.72756]
[1763660167738,0.00219803,86564.0,86548.0,0.72756]
[1763660168042,0.00219803,86564.0,86469.0,0.0115775]
[1763660168043,0.0578279,86560.0,86482.0,0.7855995]
[1763660168251,0.0578503,86526.0,86458.0,0.08356]
[1763660168437,0.00010441,86472.0,86471.0,0.0115774]
[1763660168641,0.00017343,86501.0,86483.0,0.00017343]
[1763660168943,0.00219803,86484.0,86483.0,0.00017343]
[1763660169139,0.00017343,86501.0,86496.0,0.16571]
[1763660169450,0.00999999,86570.0,86517.0,0.0115711]
[1763660169651,0.00219803,86549.0,86496.0,0.011574]
[1763660169943,0.01166564,86548.0,86495.0,0.12016]
[1763660170145,0.00219803,86547.0,86496.0,0.16571]
[1763660170336,0.0115697,86529.0,86513.0,0.00017331]
[1763660170535,0.00219803,86514.0,86513.0,0.00017331]
[1763660170735,0.00011683,86514.0,86513.0,0.00017331]
[1763660171040,0.00017331,86530.0,86527.0,0.0115698]
[1763660171239,0.0578167,86577.0,86513.0,0.00017331]
[1763660171542,0.0115644,86568.0,86532.0,0.0115692]
[1763660171737,0.49355797,86590.0,86528.0,0.16571]
[1763660171738,0.00219803,86567.0,86528.0,0.16571]
[1763660172134,0.00017331,86556.0,86548.0,0.011567]
[1763660172342,0.00237134,86556.0,86548.0,0.011567]
[1763660172540,0.00237134,86556.0,86549.0,0.0115669]
[1763660172741,0.00017331,86556.0,86549.0,0.0115669]
[1763660172935,0.00237134,86556.0,86539.0,0.00017331]
[1763660173152,0.00237134,86556.0,86545.0,0.0115674]
[1763660173449,0.0115661,86555.0,86539.0,0.00017331]
[1763660173643,0.00219803,86540.0,86539.0,0.00017331]
[1763660174348,0.00219803,86540.0,86536.0,0.12028]
[1763660174649,0.0115683,86539.0,86536.0,0.09185254]
[1763660174843,0.00219803,86537.0,86536.0,0.09185254]
[1763660176048,0.00017331,86556.0,86536.0,0.09185254]
[1763660176354,0.03876288,86612.0,86536.0,0.09185254]
[1763660176355,0.59061997,86610.0,86566.0,0.0115646]
[1763660176544,0.00219803,86583.0,86552.0,0.16571]
[1763660176749,0.00219803,86583.0,86566.0,0.0115646]
[1763660176945,0.00219803,86583.0,86552.0,0.16571]
[1763660176946,0.0115627,86581.0,86558.0,0.0115656]
[1763660177251,0.00219803,86580.0,86552.0,0.16571]
[1763660177444,0.00219803,86580.0,86557.0,0.00017331]
[1763660177445,0.00017331,86575.0,86557.0,0.00017331]
[1763660177649,0.00219803,86574.0,86557.0,0.00017331]
[1763660177838,0.00219803,86574.0,86563.0,0.0115649]
[1763660178046,0.00219803,86574.0,86563.0,0.011565]
[1763660178244,0.00219803,86574.0,86557.0,0.00017331]
[1763660178649,0.0115646,86567.0,86557.0,0.00017331]
[1763660178851,0.00219803,86558.0,86536.0,0.09185254]
[1763660179256,0.0115659,86557.0,86536.0,0.09185254]
[1763660179553,0.0115622,86585.0,86537.0,0.0578426]
[1763660179748,0.0115624,86583.0,86560.0,0.0115654]
[1763660179951,0.1664288,86610.0,86536.0,0.14969604]
[1763660179952,0.00017331,86570.0,86565.0,0.0115647]
[1763660180254,0.00219803,86569.0,86565.0,0.0115648]
[1763660180551,0.00017331,86576.0,86571.0,0.0115639]
[1763660180756,0.49351787,86650.0,86606.0,0.0115593]
[1763660181054,0.0115585,86613.0,86595.0,0.12024]
[1763660181242,0.00219803,86612.0,86595.0,0.12024]
[1763660181445,0.01156,86602.0,86595.0,0.12024]
[1763660181647,0.0115608,86595.0,86590.0,0.00017321]
[1763660181848,0.00219803,86591.0,86590.0,0.00017321]
[1763660182251,0.00017321,86607.0,86590.0,0.00017321]
[1763660182453,0.00219803,86606.0,86598.0,0.0115603]
[1763660182656,0.0115605,86598.0,86590.0,0.00017321]
[1763660182853,0.00219803,86591.0,86590.0,0.00017321]
[1763660184550,0.00319803,86591.0,86590.0,0.00017321]
[1763660185354,0.0115631,86578.0,86574.0,0.1202]
[1763660185660,0.00219803,86575.0,86574.0,0.1202]
[1763660186957,0.00319803,86575.0,86574.0,0.1202]
[1763660187852,0.01376153,86575.0,86574.0,0.1202]
[1763660188057,0.0115645,86567.0,86566.0,0.00017321]
[1763660188248,0.04453286,86567.0,86566.0,0.00017321]
[1763660188443,0.03296836,86567.0,86566.0,0.00017321]
[1763660188648,0.00219803,86567.0,86566.0,0.00017321]
[1763660189059,0.04438214,86567.0,86566.0,0.00017321]
[1763660189254,0.03297655,86567.0,86566.0,0.00017321]
[1763660189552,0.001,86575.0,86574.0,0.0115636]
[1763660189761,3.21e-06,86583.0,86582.0,0.0115625]
[1763660189956,0.10469062,86598.0,86566.0,0.00017321]
[1763660190149,0.00219803,86597.0,86562.0,0.16571]
[1763660190351,0.00219803,86597.0,86593.0,0.0115609]
[1763660190651,0.00219803,86597.0,86593.0,0.1316409]
[1763660190848,0.05921128,86623.0,86593.0,0.52008]
[1763660190849,0.00017321,86604.0,86593.0,0.52008]
[1763660191047,0.03876288,86624.0,86612.0,0.0115585]
[1763660191265,0.0115558,86633.0,86626.0,0.0115566]
[1763660191554,0.00219803,86632.0,86593.0,0.12008]
[1763660191755,0.00219803,86632.0,86578.0,0.0693778]
[1763660191958,0.03876288,86628.0,86613.0,0.0115583]
[1763660192161,0.01101641,86641.0,86594.0,0.12]
[1763660192162,0.0115584,86613.0,86602.0,0.00017321]
[1763660192351,0.00219803,86612.0,86602.0,0.00017321]
[1763660192551,0.03876288,86607.0,86602.0,0.00017321]
[1763660192755,0.00219803,86606.0,86603.0,0.0115597]
[1763660192959,0.00219803,86606.0,86602.0,0.00017321]
[1763660193150,0.0115595,86605.0,86602.0,0.00017321]
[1763660193353,0.00219803,86603.0,86602.0,0.00017321]
[1763660193553,0.00219803,86603.0,86561.0,0.0115653]
[1763660193554,0.0577996,86602.0,86562.0,0.89435]
[1763660193749,0.00219803,86568.0,86562.0,0.89435]
[1763660193958,0.00219803,86568.0,86566.0,0.12012]
[1763660194156,0.01352658,86568.0,86560.0,0.12012]
[1763660194357,0.09256078,86568.0,86555.0,0.12012]
[1763660194549,0.0790342,86566.0,86555.0,0.12012]
[1763660194752,0.03950559,86558.0,86555.0,0.12012]
[1763660194958,0.03949736,86557.0,86556.0,0.011566]
[1763660195160,0.00017321,86570.0,86567.0,0.0115644]
[1763660195359,0.0115661,86556.0,86553.0,0.00017321]
[1763660195550,0.00073267,86554.0,86553.0,0.00237124]
[1763660195754,0.0008331,86554.0,86553.0,0.00237124]
[1763660196262,0.00010043,86554.0,86553.0,0.00237124]
[1763660196755,0.00110043,86554.0,86553.0,0.00237124]
[1763660196951,0.00017321,86570.0,86553.0,0.00237124]
[1763660197151,0.00073267,86569.0,86568.0,0.0115644]
[1763660197359,0.00073267,86569.0,86568.0,0.01376243]
[1763660197660,0.0115661,86556.0,86554.0,0.12008]
[1763660197861,0.00073267,86555.0,86554.0,0.12227803]
[1763660198174,4.967e-05,86555.0,86554.0,0.13384433]
[1763660198460,0.00078234,86555.0,86554.0,0.12227803]
[1763660199053,4.967e-05,86555.0,86554.0,0.12227803]
[1763660199260,0.00017321,86570.0,86566.0,0.0115646]
[1763660199471,0.07921184,86572.0,86566.0,0.0115646]
[1763660199759,0.0115601,86600.0,86573.0,0.0115637]
[1763660199954,0.0115581,86616.0,86562.0,0.15497]
[1763660199955,0.00219803,86583.0,86562.0,0.15497]
[1763660200162,0.011563,86579.0,86573.0,0.0115637]
[1763660200463,0.00219803,86574.0,86567.0,0.12]
[1763660200658,0.0115644,86568.0,86567.0,0.00017321]
[1763660200866,0.01376243,86568.0,86567.0,0.00017321]
[1763660201259,0.01376243,86568.0,86552.0,0.11996]
[1763660201260,0.00219803,86568.0,86552.0,0.11996]
[1763660201758,0.00219803,86568.0,86552.0,0.1315265]
[1763660201759,0.03034672,86567.0,86552.0,0.1315265]
[1763660201955,0.0115658,86558.0,86552.0,0.11996]
[1763660202160,0.00219803,86553.0,86552.0,0.11996]
[1763660202360,0.03254475,86553.0,86552.0,0.11996]
[1763660202563,0.03034672,86553.0,86552.0,0.11996]
[1763660202768,0.00017321,86564.0,86558.0,0.0115656]
[1763660202954,0.00219803,86563.0,86552.0,0.11996]
[1763660203159,0.00219803,86563.0,86561.0,0.0115653]
[1763660203466,0.00017321,86564.0,86561.0,0.0115653]
[1763660203762,0.10004864,86614.0,86564.0,0.0115648]
[1763660203970,0.0115605,86598.0,86590.0,0.0115614]
[1763660204164,0.00219803,86591.0,86590.0,0.0115614]
[1763660204368,0.01112753,86616.0,86614.0,0.0115582]
[1763660204671,0.00017321,86624.0,86620.0,0.0115573]
[1763660204860,0.00017321,86624.0,86606.0,0.00017321]
[1763660205168,0.00237124,86624.0,86620.0,0.0115573]
[1763660205357,0.0115592,86608.0,86606.0,0.00017321]
[1763660205559,0.00219803,86607.0,86606.0,0.00017321]
[1763660205769,0.001,86616.0,86607.0,0.0115592]
[1763660205963,0.001,86616.0,86606.0,0.00017321]
[1763660205964,0.00017321,86624.0,86613.0,0.0115583]
[1763660206156,0.00219803,86623.0,86606.0,0.00017321]
[1763660206571,0.00219803,86623.0,86616.0,0.0115579]
[1763660206772,0.00219803,86623.0,86606.0,0.00017321]
[1763660206773,0.00219803,86623.0,86620.0,0.0115574]
[1763660206961,0.00017321,86624.0,86620.0,0.0115574]
[1763660207163,0.00219803,86622.0,86606.0,0.00017321]
[1763660207366,0.0115587,86611.0,86606.0,0.00017321]
[1763660207568,0.00219803,86607.0,86606.0,0.00017321]
[1763660207763,0.00219803,86607.0,86606.0,0.11981321]
[1763660207968,0.00017321,86624.0,86620.0,0.0115574]
[1763660208172,0.00219803,86623.0,86606.0,0.11981321]
[1763660208359,0.00219803,86623.0,86619.0,0.0115575]
[1763660208966,0.00219803,86623.0,86613.0,0.0115583]
[1763660209164,0.00219803,86623.0,86606.0,0.00017321]
[1763660209363,0.00319803,86623.0,86615.0,0.0115581]
[1763660209563,0.00319803,86623.0,86621.0,0.0115573]
[1763660209768,0.00319803,86623.0,86606.0,0.15514321]
[1763660209961,0.09262076,86644.0,86606.0,0.15514321]
[1763660209962,0.0791621,86636.0,86634.0,0.0115556]
[1763660210165,0.0791621,86636.0,86615.0,0.0577903]
[1763660210166,0.00219803,86644.0,86637.0,0.0115551]
[1763660210469,0.00219803,86644.0,86624.0,0.0115569]
[1763660210667,0.0115553,86636.0,86606.0,0.15497]
[1763660210870,0.00219803,86635.0,86609.0,0.0115589]
[1763660211166,0.0791621,86659.0,86620.0,0.0577874]
[1763660211377,0.00219803,86654.0,86652.0,0.0115531]
[1763660211560,0.00219803,86654.0,86650.0,0.1310334]
[1763660211871,0.00219803,86654.0,86632.0,0.15497]
[1763660211872,0.0791621,86672.0,86653.0,0.00219803]
[1763660212063,0.0115528,86655.0,86653.0,0.00219803]
[1763660212264,0.00060154,86654.0,86653.0,0.00219803]
[1763660212465,0.09059924,86673.0,86645.0,0.00017309]
[1763660212466,0.00723137,86646.0,86645.0,0.00017309]
[1763660212677,0.0115527,86656.0,86615.0,0.72852]
[1763660212678,0.011557,86624.0,86615.0,0.72852]
[1763660212859,0.0115544,86644.0,86629.0,0.0115562]
[1763660213167,0.0115539,86647.0,86630.0,0.00219803]
[1763660213470,0.001,86654.0,86630.0,0.00219803]
[1763660213667,0.00017309,86651.0,86633.0,0.00017309]
[1763660213868,0.0115549,86640.0,86634.0,0.00219803]
[1763660214057,0.0115544,86644.0,86635.0,0.0115554]
[1763660214263,0.0115538,86648.0,86636.0,0.00219803]
[1763660214464,0.00017309,86651.0,86636.0,0.00219803]
[1763660214659,0.02984259,86650.0,86647.0,0.0115537]
[1763660214858,0.00017309,86651.0,86650.0,0.0115534]
[1763660215058,0.03002625,86651.0,86650.0,0.00219803]
[1763660216060,0.03102625,86651.0,86650.0,0.00219803]
[1763660216769,0.03102625,86651.0,86650.0,0.15716803]
[1763660217069,0.0907138,86663.0,86659.0,0.0115522]
[1763660217266,0.011552,86661.0,86660.0,0.00219803]
[1763660217869,0.0115538,86648.0,86616.0,1.5115579]
[1763660218073,0.0115539,86647.0,86645.0,0.0115541]
[1763660218268,0.07882511,86659.0,86646.0,0.00219803]
[1763660218463,0.001,86663.0,86650.0,0.0115534]
[1763660218464,0.07882511,86661.0,86650.0,0.0115534]
[1763660218672,0.07882511,86661.0,86660.0,0.00219803]
[1763660218874,0.001,86661.0,86660.0,0.00219803]
[1763660219476,0.011552,86662.0,86660.0,0.00219803]
[1763660219862,0.011552,86662.0,86652.0,0.00017309]
[1763660219863,0.0115531,86653.0,86652.0,0.00017309]
[1763660220083,0.0115531,86653.0,86652.0,0.00237112]
[1763660220267,0.07872827,86655.0,86652.0,0.00237112]
[1763660220469,0.0115528,86655.0,86652.0,0.00237112]
[1763660220769,0.07872827,86659.0,86652.0,0.00237112]
[1763660220970,0.07872827,86659.0,86657.0,0.0115524]
[1763660221170,0.07872827,86659.0,86652.0,0.00237112]
[1763660221171,0.001,86661.0,86660.0,0.0115521]
[1763660221365,0.1400681,86681.0,86660.0,0.0115521]
[1763660221366,0.07872827,86681.0,86660.0,0.12127803]
[1763660221569,0.0115519,86662.0,86660.0,0.12127803]
[1763660221873,0.0115531,86653.0,86652.0,0.00017309]
[1763660222074,0.0137511,86653.0,86652.0,0.00090578]
[1763660222278,0.002198,86653.0,86652.0,0.00090578]
[1763660222472,0.09320801,86653.0,86652.0,0.00090578]
[1763660222671,0.09320801,86653.0,86652.0,0.00017309]
[1763660222872,0.001,86661.0,86652.0,0.00090578]
[1763660223170,0.002198,86660.0,86652.0,0.00090578]
[1763660223374,0.0115527,86656.0,86652.0,0.00090578]
[1763660223571,0.002198,86653.0,86652.0,0.00090578]
[1763660223772,0.16891549,86680.0,86652.0,0.00090578]
[1763660223972,0.001,86662.0,86660.0,0.0115521]
[1763660224166,0.0115498,86678.0,86661.0,0.00073269]
[1763660224378,0.002198,86678.0,86661.0,0.00073269]
[1763660224579,0.07872827,86693.0,86666.0,0.0577561]
[1763660224880,0.249109,86738.0,86666.0,0.0577561]
[1763660224881,0.07872827,86733.0,86692.0,0.00073269]
[1763660225084,0.002198,86726.0,86692.0,0.00073269]
[1763660225376,0.03936373,86709.0,86693.0,0.05068]
[1763660225675,0.002198,86708.0,86700.0,0.00017298]
[1763660225872,0.002198,86708.0,86701.0,0.00073269]
[1763660226067,0.002198,86708.0,86704.0,0.0115461]
[1763660226270,0.002198,86708.0,86704.0,0.00073269]
[1763660226478,0.0115458,86707.0,86704.0,0.00073269]
[1763660226674,0.03936373,86712.0,86711.0,0.0115453]
[1763660226973,0.002198,86712.0,86711.0,0.00073269]
[1763660227174,0.002198,86712.0,86700.0,0.00017298]
[1763660227476,0.03936373,86720.0,86712.0,0.0115452]
[1763660227672,0.002198,86719.0,86717.0,0.0115444]
[1763660227870,0.002198,86719.0,86718.0,0.00073269]
[1763660228071,0.03936373,86737.0,86735.0,0.0115421]
[1763660228272,0.03936373,86742.0,86736.0,0.00073269]
[1763660228472,0.0115421,86735.0,86727.0,0.00017298]
[1763660228672,0.002198,86735.0,86734.0,0.00073269]
[1763660228880,0.03936373,86746.0,86734.0,0.00073269]
[1763660228881,0.03936373,86756.0,86755.0,0.0115394]
[1763660229089,0.03936373,86773.0,86755.0,0.00073269]
[1763660229272,0.02273525,86772.0,86755.0,0.00073269]
[1763660229477,0.0115404,86748.0,86747.0,0.00017298]
[1763660229671,0.0115464,86703.0,86700.0,0.16199]
[1763660229886,0.00219803,86748.0,86701.0,0.11916]
[1763660229887,0.03934422,86736.0,86701.0,0.11916]
[1763660230182,0.0115426,86732.0,86701.0,0.11916]
[1763660230370,0.0115465,86702.0,86701.0,0.11916]
[1763660230575,0.00219803,86702.0,86701.0,0.11916]
[1763660230779,0.0001727,86710.0,86701.0,0.11916]
[1763660231070,0.0001727,86714.0,86701.0,0.11916]
[1763660231274,0.0115459,86707.0,86701.0,0.11916]
[1763660231476,0.011546,86706.0,86701.0,0.11916]
[1763660231674,0.01374413,86706.0,86701.0,0.11916]
[1763660231879,0.16054,86700.0,86699.0,9e-08]
[1763660232071,0.16054,86700.0,86640.0,0.36400371]
[1763660232072,0.0115506,86671.0,86670.0,0.0418]
[1763660232270,0.00219803,86671.0,86662.0,0.11932]
[1763660232672,0.03934422,86693.0,86676.0,0.0115499]
[1763660232875,0.03934422,86713.0,86683.0,0.011549]
[1763660233071,0.03934422,86713.0,86675.0,0.16199]
[1763660233072,0.00219803,86706.0,86689.0,0.00017301]
[1763660233286,0.01374403,86706.0,86690.0,0.0115481]
[1763660233477,0.0115466,86702.0,86694.0,0.0115475]
[1763660233681,0.0115469,86700.0,86691.0,0.11928]
[1763660233878,0.0115478,86693.0,86689.0,0.00017301]
[1763660234083,0.00219803,86690.0,86689.0,0.00017301]
[1763660234986,0.00013759,86692.0,86690.0,0.0115481]
[1763660235285,0.01171881,86707.0,86689.0,0.00017301]
[1763660235489,0.03934422,86716.0,86714.0,0.0115449]
[1763660235685,0.1720802,86750.0,86715.0,0.11924]
[1763660235686,0.03934422,86731.0,86715.0,0.11924]
[1763660235888,0.03934422,86734.0,86715.0,0.11924]
[1763660236080,0.00219803,86734.0,86715.0,0.11924]
[1763660236382,0.1720835,86725.0,86707.0,0.1192]
[1763660236583,0.0115417,86738.0,86707.0,0.1192]
[1763660236584,0.03934422,86718.0,86707.0,0.1192]
[1763660236782,0.0115451,86713.0,86707.0,0.11937301]
[1763660236981,0.0001727,86725.0,86720.0,0.0115441]
[1763660237190,0.03934422,86741.0,86707.0,0.11937301]
[1763660237483,0.07872827,86763.0,86736.0,0.0115419]
[1763660237484,0.03934422,86757.0,86736.0,0.0115419]
[1763660237681,0.00219803,86756.0,86746.0,0.00119096]
[1763660237887,0.00219803,86756.0,86747.0,0.11924]
[1763660238085,0.0115345,86793.0,86747.0,0.11924]
[1763660238086,0.03934422,86766.0,86747.0,0.11924]
[1763660238288,0.03934422,86776.0,86755.0,0.0115394]
[1763660238485,0.04154225,86775.0,86750.0,0.16199]
[1763660238786,0.0115384,86763.0,86762.0,0.00119096]
[1763660238983,0.0115398,86752.0,86748.0,0.00017289]
[1763660239284,0.00219803,86749.0,86748.0,0.00017289]
[1763660239887,0.00219803,86749.0,86717.0,0.0115445]
[1763660240090,0.00219803,86749.0,86726.0,0.11916]
[1763660240091,0.0115428,86730.0,86726.0,0.11916]
[1763660240291,0.00219803,86727.0,86726.0,0.11916]
[1763660240596,0.01374133,86727.0,86726.0,0.11916]
[1763660240788,0.03954559,86745.0,86726.0,0.11916]
[1763660241087,0.00017251,86744.0,86743.0,0.011541]
[1763660241395,0.00219803,86744.0,86743.0,0.11912]
[1763660241690,0.00017251,86752.0,86743.0,0.130661]
[1763660241889,0.03182227,86751.0,86743.0,0.11912]
[1763660242090,0.011542,86736.0,86735.0,0.00017289]
[1763660242283,0.00219803,86736.0,86735.0,0.10245289]
[1763660242483,0.00219803,86736.0,86735.0,0.11925289]
[1763660242678,0.03178549,86736.0,86735.0,0.11925289]
[1763660242883,0.0115402,86750.0,86743.0,0.0115409]
[1763660243090,0.0115407,86746.0,86735.0,0.11925289]
[1763660243298,0.0115407,86746.0,86742.0,0.011541]
[1763660243299,0.00219803,86746.0,86742.0,0.011541]
[1763660243480,0.0115408,86745.0,86736.0,0.011542]
[1763660243683,0.00219803,86744.0,86741.0,0.0115412]
[1763660243886,0.00219803,86744.0,86737.0,0.11904]
[1763660244093,0.00219803,86744.0,86735.0,9e-08]
[1763660244094,0.0115417,86738.0,86735.0,9e-08]
[1763660244281,0.0115462,86705.0,86700.0,0.16199]
[1763660244482,0.00219803,86702.0,86700.0,0.0115467]
[1763660244688,0.0115437,86723.0,86700.0,0.0115467]
[1763660244689,0.03944642,86721.0,86701.0,0.11922978]
[1763660244994,0.00219803,86721.0,86711.0,0.0115453]
[1763660245187,0.00219803,86721.0,86701.0,0.11922978]
[1763660245188,0.0115463,86704.0,86701.0,0.00010978]
[1763660245488,0.00219803,86702.0,86701.0,0.00010978]
[1763660245697,0.0115474,86695.0,86694.0,0.000173]
[1763660245993,0.01374543,86695.0,86694.0,0.119253]
[1763660246183,0.01374543,86695.0,86650.0,0.36400371]
[1763660246184,0.0115498,86678.0,86650.0,0.36400371]
[1763660246386,0.0115498,86678.0,86642.0,0.72752]
[1763660246387,0.011554,86646.0,86642.0,0.72752]
[1763660246586,0.00219803,86643.0,86642.0,0.72752]
[1763660246793,0.00219803,86643.0,86642.0,0.10952039]
[1763660246985,0.0115551,86638.0,86613.0,0.08408]
[1763660247189,0.00017312,86634.0,86617.0,0.00017312]
[1763660247383,0.00219803,86633.0,86619.0,0.0115574]
[1763660247585,0.00219803,86633.0,86617.0,0.00017312]
[1763660248086,0.00219803,86633.0,86629.0,0.0115562]
[1763660248593,0.00017312,86634.0,86633.0,0.0115557]
[1763660248788,0.00010978,86646.0,86645.0,0.0115541]
[1763660248986,0.00010978,86646.0,86645.0,0.11928]
[1763660249386,0.00230781,86646.0,86645.0,0.11928]
[1763660249583,0.40230781,86646.0,86618.0,1.5]
[1763660249786,0.0115559,86632.0,86623.0,0.00017312]
[1763660249985,0.00219803,86624.0,86623.0,0.00017312]
[1763660250293,0.00219803,86624.0,86623.0,0.01173012]
[1763660250495,0.00017312,86641.0,86623.0,0.00017312]
[1763660250697,0.0115553,86636.0,86623.0,0.00017312]
[1763660250895,0.0115567,86626.0,86623.0,0.00017312]
[1763660251100,0.00061917,86624.0,86623.0,0.00175207]
[1763660251398,0.00017312,86641.0,86623.0,0.00175207]
[1763660251601,0.00017312,86641.0,86640.0,0.0115548]
[1763660251801,0.00152487,86641.0,86640.0,0.00157895]
[1763660252294,0.00152487,86641.0,86640.0,0.01313375]
[1763660252505,0.00152487,86641.0,86640.0,0.00157895]
[1763660253098,0.00152487,86641.0,86640.0,0.00357895]
[1763660253495,0.00029733,86641.0,86640.0,0.00357895]
[1763660253698,0.00029733,86641.0,86640.0,0.00157895]
[1763660253893,0.0115487,86686.0,86650.0,0.0115534]
[1763660254098,0.00135175,86667.0,86651.0,0.00157895]
[1763660254298,0.0115518,86663.0,86638.0,0.11912]
[1763660254493,0.00219803,86639.0,86638.0,0.11912]
[1763660254799,0.0115528,86655.0,86640.0,0.0115546]
[1763660254997,0.00017292,86647.0,86644.0,0.0115541]
[1763660255199,0.00227381,86646.0,86638.0,0.11912]
[1763660255596,0.00227381,86646.0,86642.0,0.0115544]
[1763660255802,0.00227381,86646.0,86638.0,0.11912]
[1763660255803,0.0115545,86642.0,86638.0,0.11912]
[1763660256005,0.0115578,86617.0,86616.0,0.00010449]
[1763660256202,0.01383161,86617.0,86616.0,0.00010449]
[1763660256597,0.01383161,86617.0,86616.0,4.49e-06]
[1763660256598,0.41383161,86617.0,86616.0,4.49e-06]
[1763660256806,0.00227381,86617.0,86599.0,0.11908]
[1763660257109,0.00227381,86617.0,86616.0,0.001]
[1763660257307,0.00227381,86617.0,86616.0,0.00230723]
[1763660257700,0.03948042,86655.0,86616.0,0.00230723]
[1763660257701,0.03948042,86667.0,86616.0,0.40157914]
[1763660257900,0.00219803,86667.0,86657.0,0.0115525]
[1763660258201,0.00219803,86667.0,86657.0,0.11912]
[1763660258202,0.0115518,86663.0,86657.0,0.11912]
[1763660258402,0.00219803,86658.0,86657.0,0.11912]
[1763660258806,0.00230252,86658.0,86657.0,0.12069914]
[1763660259000,0.00230252,86658.0,86657.0,0.00157914]
[1763660259306,0.00230252,86658.0,86598.0,0.01170522]
[1763660259307,0.0115527,86656.0,86620.0,0.08144]
[1763660259512,0.00219803,86621.0,86620.0,0.08144]
[1763660259715,0.00229988,86621.0,86620.0,0.08144]
[1763660260006,0.00010185,86621.0,86620.0,0.0929974]
[1763660260400,0.00229988,86621.0,86620.0,0.08244]
[1763660261197,0.00229988,86621.0,86620.0,0.001]
[1763660261406,0.0115584,86613.0,86612.0,0.00017312]
[1763660261614,0.0115602,86599.0,86598.0,0.00014492]
[1763660261806,0.0115602,86599.0,86560.0,0.72808]
[1763660261807,0.0115627,86581.0,86560.0,0.72808]
[1763660262011,0.00219803,86580.0,86550.0,0.52599371]
[1763660262213,0.0115643,86569.0,86550.0,0.52599371]
[1763660262403,0.0115645,86567.0,86551.0,1.61908]
[1763660262708,0.00219803,86566.0,86551.0,1.5]
[1763660263018,0.00219803,86566.0,86553.0,0.0115663]
[1763660263019,9.55e-05,86565.0,86553.0,0.0115663]
[1763660263317,0.0115662,86555.0,86552.0,1.61904]
[1763660263503,0.00219803,86553.0,86552.0,1.61904]
[1763660263804,9.55e-05,86565.0,86560.0,0.0115654]
[1763660264012,9.55e-05,86565.0,86481.0,0.15998]
[1763660264013,0.01157,86526.0,86481.0,0.15998]
[1763660264313,0.0693917,86562.0,86481.0,0.15998]
[1763660264314,0.0115652,86562.0,86520.0,0.15998]
[1763660264505,0.00219803,86561.0,86520.0,0.15998]
[1763660264811,0.09290701,86561.0,86520.0,0.15998]
[1763660265127,0.00017334,86549.0,86537.0,0.0115684]
[1763660265416,0.00017334,86549.0,86548.0,0.15998]
[1763660265910,9.55e-05,86565.0,86548.0,0.15998]
[1763660266101,0.00219803,86564.0,86548.0,0.15998]
[1763660266305,0.011566,86557.0,86548.0,0.15998]
[1763660266510,9.55e-05,86565.0,86548.0,0.15998]
[1763660266511,0.00219803,86556.0,86548.0,0.15998]
[1763660266708,9.55e-05,86565.0,86560.0,0.0115654]
[1763660267217,0.00017334,86571.0,86570.0,0.0115641]
[1763660267508,0.0115554,86636.0,86576.0,0.15998]
[1763660267713,0.00219803,86613.0,86577.0,0.09004]
[1763660267910,0.0577961,86607.0,86576.0,0.15998]
[1763660268111,0.00219803,86606.0,86576.0,0.15998]
[1763660268301,0.0115603,86599.0,86577.0,0.06232]
[1763660268612,0.0115627,86581.0,86579.0,0.00017324]
[1763660268914,0.00017324,86597.0,86591.0,0.0115612]
[1763660269114,0.00219803,86596.0,86579.0,0.00017324]
[1763660269414,0.01055867,86585.0,86579.0,0.00017324]
[1763660269614,0.0115615,86590.0,86579.0,0.00017324]
[1763660269815,0.0115609,86595.0,86584.0,0.0115622]
[1763660270005,0.00014731,86589.0,86588.0,0.0115617]
[1763660270205,0.00014731,86589.0,86579.0,0.00017324]
[1763660270406,0.00234534,86589.0,86585.0,0.0115621]
[1763660270913,0.00017324,86597.0,86596.0,0.0115606]
[1763660271111,0.09420941,86620.0,86602.0,0.0115598]
[1763660271305,0.00219803,86619.0,86604.0,0.15998]
[1763660271501,0.00219803,86619.0,86605.0,0.0115594]
[1763660271714,0.0577638,86656.0,86604.0,0.15998]
[1763660271715,0.0115562,86630.0,86618.0,0.0115576]
[1763660271913,0.011553,86653.0,86604.0,0.15998]
[1763660271914,0.00219803,86629.0,86604.0,0.15998]
[1763660272106,0.00219803,86629.0,86616.0,0.00125722]
[1763660272410,0.0001725,86625.0,86616.0,0.00125722]
[1763660272610,0.00219803,86624.0,86616.0,0.00125722]
[1763660272810,0.0115575,86620.0,86616.0,0.00125722]
[1763660273113,0.01030078,86616.0,86612.0,0.00017313]
[1763660273312,0.0115573,86621.0,86612.0,0.00017313]
[1763660273513,0.00219803,86620.0,86616.0,0.0115579]
[1763660273817,0.0001725,86629.0,86624.0,0.0115568]
[1763660274010,0.0577612,86660.0,86612.0,0.00017313]
[1763660274011,0.09288839,86642.0,86612.0,0.00017313]
[1763660274317,0.0115548,86640.0,86629.0,0.0115562]
[1763660274517,9.646e-05,86641.0,86638.0,0.0115549]
[1763660274812,0.03948042,86671.0,86632.0,0.15998]
[1763660274813,0.0115514,86666.0,86649.0,0.0115535]
[1763660275014,0.00219803,86665.0,86650.0,0.11888]
[1763660275310,0.0115519,86662.0,86650.0,0.11888]
[1763660275512,0.00219803,86662.0,86651.0,0.0115533]
[1763660275712,0.00219803,86662.0,86650.0,0.11888]
[1763660276112,0.0115524,86658.0,86650.0,0.11888]
[1763660276414,0.09354636,86668.0,86650.0,0.11888]
[1763660276415,0.0115526,86656.0,86650.0,0.11888]
[1763660276616,0.05102942,86684.0,86650.0,0.11888]
[1763660276815,0.00219803,86677.0,86658.0,0.15998]
[1763660277008,0.0115505,86672.0,86658.0,0.1715323]
[1763660277203,0.0115474,86695.0,86661.0,0.0115519]
[1763660277406,0.0289803,86694.0,86669.0,0.00017313]
[1763660277609,0.0115491,86683.0,86669.0,0.01172403]
[1763660277821,0.0115493,86681.0,86669.0,0.01172403]
[1763660278004,0.09109733,86693.0,86670.0,0.36400371]
[1763660278211,0.0115487,86686.0,86670.0,0.36400371]
[1763660278411,0.0115489,86684.0,86670.0,0.36400371]
[1763660278607,0.001,86695.0,86671.0,0.0115506]
[1763660278608,0.00219803,86683.0,86671.0,0.0115506]
[1763660278919,0.0115492,86682.0,86670.0,0.36400371]